Cogmind - Beta 12 X2 @@@ ROGUE MODE // 2022.09.12 @ 20:37:58 Player: btmk16 Result: Destroyed by D-53 Grenadier with Mini Grenade Launcher Performance ------------- Evolutions (0) 0 Regions Visited (2) 400 Robots Destroyed (25) 125 Value Destroyed (594) 594 Prototype IDs (2) 40 Alien Tech Used (0) 0 Bonus (0) 0 TOTAL SCORE: 1159 Bonus ------- None Cogmind --------- Core Integrity 0/250 Matter 202/300 Energy 99/100 System Corruption 1% Temperature Cool (0) Movement Core (700) Ox13 Location -10/Mines Parts ------- > --- POWER (1) -------- (None) > --- PROPULSION (2) --- (None) > --- UTILITY (2) ------ High-capacity Storage Unit > --- WEAPON (2) ------- Light Assault Rifle > --- INVENTORY (20) --- Light Treads Light Treads Light Treads Improved Heat Sink Experimental Sensor Array Improved Terrain Scanner Spread Laser Spread Laser Spread Laser Spread Laser Light Assault Rifle Light Assault Rifle Grenade Launcher Grenade Launcher Grenade Launcher Peak State ------------ > --- POWER ------------ Ion Engine > --- PROPULSION ------- Light Treads Wheel > --- UTILITY ---------- High-capacity Storage Unit Seismic Detector > --- WEAPON ----------- Particle Gun Grenade Launcher > --- INVENTORY -------- Light Treads Light Treads Light Treads Improved Heat Sink Experimental Sensor Array Improved Terrain Scanner Spread Laser Spread Laser Spread Laser Spread Laser Light Assault Rifle Light Assault Rifle Light Assault Rifle Grenade Launcher Grenade Launcher [Rating: 11] Favorites ----------- Power Ion Engine Engine Ion Engine Propulsion Light Treads Treads Light Treads Wheel Wheel Utility Seismic Detector Device Seismic Detector Storage Small Storage Unit Weapon Light Assault Rifle Energy Gun Particle Gun Ballistic Gun Light Assault Rifle Launcher Grenade Launcher Build | -11 -10 -10 ------- Run | Scr Mat Min Slots Evolved . | . . . Power . | . . . Propulsion . | . . . Utility . | . . . Weapon . | . . . Parts Attached 22 | 7 10 5 Power 2 | 1 1 . Engine 2 | 1 1 . Core . | . . . Reactor . | . . . Propulsion 5 | 2 3 . Treads 3 | 2 1 . Leg . | . . . Wheel 2 | . 2 . Hover . | . . . Flight . | . . . Utility 3 | 2 1 . Device 1 | 1 . . Storage 2 | 1 1 . Processor . | . . . Hackware . | . . . Protection . | . . . Artifact . | . . . Weapon 12 | 2 5 5 Energy Gun 1 | . . 1 Energy Cannon . | . . . Ballistic Gun 7 | 2 3 2 Ballistic Cannon . | . . . Launcher 4 | . 2 2 Special Weapon . | . . . Impact Weapon . | . . . Slashing Weapon . | . . . Piercing Weapon . | . . . Special Melee Weapon . | . . . Unidentified Prototypes . | . . . Parts Lost 8 | . 3 5 Power 2 | . 1 1 Propulsion 3 | . 1 2 Utility 1 | . . 1 Weapon 2 | . 1 1 Highest Loss Streak 4 | . 2 4 To Critical Strikes . | . . . Average Slot Usage (%) 98 | . 99 93 Engine 13 | . 13 13 Treads 17 | . 18 13 Wheel 9 | . 9 13 Device 13 | . 14 10 Storage 14 | . 14 14 Ballistic Gun 26 | . 27 21 Naked Turns . | . . . Heaviest Build 50 | 12 50 50 Greatest Support 40 | 40 40 10 Greatest Overweight (x) 4 | . 4 4 Average Overweight (x) 2 | . 1 4 Largest Inventory Capacity 20 | 8 20 20 Average Capacity 12 | 7 11 20 Most Carried 15 | 8 14 15 Average Carried 8 | 5 8 14 Final Capacity 20 | 8 20 20 Final Carried 15 | 7 14 15 Class Distribution -------------------- 100% | Mutant Dominant Class ---------------- Mutant | -10/Materials Mutant | -10/Mines Resources | -11 -10 -10 ----------- Run | Scr Mat Min Matter Collected 675 | 97 535 43 Remotely . | . . . Salvage Created 764 | 36 589 139 Parts 48 | 7 40 1 Haulers Intercepted 1 | . 1 . Recyclers Shooed 2 | . 2 . Parts Field Recycled . | . . . Retrieved Matter . | . . . Parts Self-Destructed . | . . . Prevented . | . . . Kills | -11 -10 -10 ------- Run | Scr Mat Min Combat Hostiles Destroyed 22 | . 13 9 Guns 15 | . 13 2 AOE 7 | . . 7 Classes Destroyed 9 | 1 6 2 Worker 2 | . 2 . Builder 2 | . 2 . Tunneler 3 | 2 1 . Hauler 1 | . 1 . Recycler 1 | . . 1 Operator 1 | . 1 . Swarmer 3 | . 3 . Grunt 12 | . 10 2 Assembled 7 | . . 7 Best Kill Streak 8 | 2 5 8 Combat Bots Only 7 | . 5 7 Max Kills in Single Turn 6 | 1 2 6 Gunslinging . | . . . Exploded 6 | . . 6 Melee . | . . . Uniques/NPCs Destroyed . | . . . Combat | -11 -10 -10 -------- Run | Scr Mat Min Damage Taken 1098 | . 596 502 Core 261 | . 93 168 Absorbed by Shields . | . . . Core Remaining (%) 100 | 100 . . Volleys Fired 98 | 5 78 15 Largest 2 | 2 2 2 Hottest 85 | 40 40 85 Shots Fired 186 | 10 154 22 Gun 176 | 10 152 14 Cannon . | . . . Launcher 10 | . 2 8 Special . | . . . Kinetic 171 | 10 152 9 Thermal 5 | . . 5 Explosive 10 | . 2 8 Electromagnetic . | . . . Robot Hit Streak 11 | 9 11 3 Robot Miss Streak 5 | . 3 5 Penetration Max . | . . . Secondary Targets . | . . . Shots Hit Robots 115 | 9 98 8 Core Hits 63 | 2 42 19 Critical Kills . | . . . Critical Parts Destroyed 1 | . 1 . Critical Strikes 1 | . 1 . Destroy 1 | . 1 . Melee Attacks . | . . . Impact . | . . . Slashing . | . . . Piercing . | . . . Sneak Attacks . | . . . Combat Hostiles . | . . . Follow-up Attacks . | . . . Damage Inflicted 1957 | 96 1208 653 Guns 1095 | 96 936 63 Cannons . | . . . Explosions 859 | . 269 590 Melee . | . . . Ramming 3 | . 3 . Kinetic 1060 | 96 936 28 Thermal 304 | . 269 35 Explosive 590 | . . 590 Electromagnetic . | . . . Impact . | . . . Slashing . | . . . Piercing . | . . . Highest Corruption 1 | . 1 1 Average Corruption 1 | . 1 1 Corruption Purged . | . . . Corruption Blocked . | . . . Effects 7 | . 5 2 Matter Fused 4 | . 3 1 Heat Flow Errors 1 | . 1 . Energy Discharges 1 | . 1 . Misfires 1 | . . 1 Overload Shots . | . . . Overflow Damage 65 | . 61 4 Projectiles . | . . . Explosions 65 | . 61 4 Melee . | . . . Knockbacks . | . . . Impact . | . . . Kinetic . | . . . Secondary . | . . . Self-Inflicted Damage 128 | . 88 40 Shots 2 | . 1 1 Rammed 1 | . 1 . Targets Rammed 1 | . 1 . Kicked . | . . . Crushed . | . . . Highest Temperature 132 | . 97 132 Average Temperature 24 | . 14 40 Received Heat Transfer 305 | . 234 71 Siege Activations . | . . . Robots Corrupted . | . . . Combat Hostiles . | . . . Parts Fried . | . . . Impact Corruptions . | . . . Robots Melted . | . . . Combat Hostiles . | . . . Parts Melted . | . . . Heat Transferred 274 | . 200 74 Parts Sabotaged . | . . . Parts Stolen . | . . . Parts Stripped . | . . . Power Chain Reactions . | . . . Missiles Intercepted . | . . . Alert | -11 -10 -10 ------- Run | Scr Mat Min Peak Influence 416 | 10 416 296 Initial 115 | . 6 115 Average 224 | 3 246 244 Maximum Alert Level 2 | . 2 1 Low Security (%) 32 | 100 28 16 Level 1 61 | . 64 83 Level 2 5 | . 6 . Level 3 . | . . . Level 4 . | . . . Level 5 . | . . . High Security . | . . . Max Security . | . . . Squads Dispatched 5 | . 5 . Investigation 1 | . 1 . Extermination . | . . . Reinforcement 4 | . 4 . Assault . | . . . Garrison . | . . . Intercept . | . . . Searches Triggered . | . . . Construction Impeded . | . . . Haulers Reinforced . | . . . Active Scanning Responses . | . . . Cargo Convoy Interrupts . | . . . Stealth | -11 -10 -10 --------- Run | Scr Mat Min Distress Signals 5 | . 4 1 Communications Jammed . | . . . Distress Signals . | . . . Times Spotted 41 | . 29 12 Peak Tracking Total 10 | . 6 10 Tactical Retreats 2 | . 1 1 Traps | -11 -10 -10 ------- Run | Scr Mat Min Traps Triggered 2 | . 2 . Indirectly . | . . . Trap Hack Attempts . | . . . Triggered . | . . . Disarmed . | . . . Reprogrammed . | . . . Reused . | . . . Traps Extracted . | . . . Installed . | . . . Triggered . | . . . Machines | -11 -10 -10 ---------- Run | Scr Mat Min Machines Disabled 6 | . 5 1 Max in Single Turn 5 | . 5 1 Machines Sabotaged . | . . . Overloaded Fab Kills . | . . . Hacking | -11 -10 -10 --------- Run | Scr Mat Min Machines Accessed 4 | . 4 . Terminals 4 | . 4 . Fabricators . | . . . Repair Stations . | . . . Recycling Units . | . . . Scanalyzers . | . . . Garrison Access . | . . . Total Hacks 9 | . 9 . Successful 6 | . 6 . Failed 3 | . 3 . Catastrophic 2 | . 2 . Database Lockouts . | . . . Manual 5 | . 5 . Terminals 9 | . 9 . Fabricators . | . . . Repair Stations . | . . . Recycling Units . | . . . Scanalyzers . | . . . Garrison Access . | . . . Terminal Hacks 4 | . 4 . Prototype ID Bank 1 | . 1 . Locate Traps 1 | . 1 . Recall Reinforcements 1 | . 1 . Zone Layout 1 | . 1 . Fabricator Hacks . | . . . Repair Station Hacks . | . . . Recycling Unit Hacks . | . . . Scanalyzer . | . . . Garrison Access Hacks . | . . . Unauthorized Hacks 2 | . 2 . Terminals 2 | . 2 . Track 1 | . 1 . Botnet 1 | . 1 . Fabricators . | . . . Repair Stations . | . . . Recycling Units . | . . . Scanalyzers . | . . . Garrison Access . | . . . Data Cores Recovered . | . . . Used . | . . . Hacking Detections 2 | . 2 . Full Trace Events . | . . . Feedback Events . | . . . Feedback Blocked . | . . . Robot Schematics Acquired . | . . . Robots Built . | . . . Authchips . | . . . Time . | . . . Total Robot Build Rating . | . . . Part Schematics Acquired . | . . . Parts Built . | . . . Authchips . | . . . Time . | . . . Total Part Build Rating . | . . . Parts Repaired . | . . . Time . | . . . Parts Recycled . | . . . Recycled Matter . | . . . Retrieved Matter . | . . . Retrieved Components . | . . . Parts Scanalyzed . | . . . Part Schematics Acquired . | . . . Parts Damaged . | . . . Bothacking | -11 -10 -10 ------------ Run | Scr Mat Min Used RIF Installer . | . . . Robots Hacked . | . . . Non-combat . | . . . Combat . | . . . Robot Hacks Applied . | . . . Relay Couplers Released . | . . . Fabnet Peak Effective % . | . . . Robots Rewired . | . . . Allies Hacked . | . . . Hacks Repelled . | . . . Allies | -11 -10 -10 -------- Run | Scr Mat Min Total Allies . | . . . Largest Group . | . . . Highest-Rated Group . | . . . Highest-Rated Ally . | . . . Total Orders . | . . . Ally Attacks . | . . . Total Damage . | . . . Kills . | . . . Allies Corrupted . | . . . Allies Melted . | . . . Intel | -11 -10 -10 ------- Run | Scr Mat Min Robot Analysis Total . | . . . Derelict Logs Recovered . | . . . Drone Launches . | . . . Drone Recoveries . | . . . Exploration | -11 -10 -10 ------------- Run | Scr Mat Min Turns Passed 1201 | 105 917 179 Spaces Moved 664 | 48 518 98 Core 3 | 3 . . Treads 141 | 45 96 . Legs . | . . . Wheels 520 | . 422 98 Hover . | . . . Flight . | . . . Fastest Speed 50 | 50 95 140 Average Speed 126 | 153 122 140 Slowest Speed 160 | 160 160 140 Overloaded Moves . | . . . Propulsion Burnouts . | . . . Robots Hopped . | . . . Cave-ins Triggered . | . . . Exploration Rate (%) 41 | 5 92 27 Regions Visited 2 Branch Regions 1 Pre-discovered Areas . | . . . Known Exits Taken . | . . . Unknown Exits Taken 2 | 1 1 . Scrap Searched . | . . . Spaces Dug 8 | . 8 . Terrain Destroyed 89 | . 34 55 Melee . | . . . Projectile . | . . . AOE 89 | . 34 55 Terrain Rammed . | . . . Walls Destroyed . | . . . Machines Disabled . | . . . Actions | -11 -10 -10 --------- Run | Scr Mat Min Total 856 | 68 669 119 Wait 44 | . 44 . Move 662 | 47 517 98 Hop . | . . . Pick Up 23 | 9 13 1 Fast Attach 5 | 5 . . Attach 5 | 2 3 . Detach . | . . . Swap 12 | . 7 5 Drop 6 | . 6 . Fire 98 | 5 78 15 Melee . | . . . Ram . | . . . Kick . | . . . Crush 1 | . 1 . Escape Stasis . | . . . Rewire . | . . . Trap . | . . . Miscellaneous . | . . . Route ------- -11/Scrapyard -10/Materials (discovered 4 exits: [*Mat x2] / [*Min x2]) -10/Mines History --------- Turn | Location | Event 25 | -11/Scrapyard | Discovered new exit (range 16) 106 | -11/Scrapyard | Entered Materials 223 | -10/Materials | Discovered new exit (range 11) 328 | -10/Materials | Build established: Mutant 627 | -10/Materials | Discovered new exit (range 16) 808 | -10/Materials | Discovered new exit (range 7) 897 | -10/Materials | Discovered new exit (range 15) 1023 | -10/Materials | Entered Mines 1070 | -10/Mines | Met a Derelict bent on vengeance 1117 | -10/Mines | Found a damaged Exp. Sensor Array with a note attached 1120 | -10/Mines | Found Prototype Device 1135 | -10/Mines | Assembled infested the area 1140 | -10/Mines | Assisted by a Guerilla fighting off Assembled 1159 | -10/Mines | Core integrity fell below 50% 1182 | -10/Mines | Destroyed 7 combat bots 1201 | -10/Mines | Core integrity fell below 20% 1202 | -10/Mines | Destroyed by D-53 Grenadier with Mini Grenade Launcher Last Messages --------------- 01140_ A derelict emerges from the shadows: "You need to get out of here! I've been tracking a group of Assembled to figure out where they're coming from, and they're closing on this area, come on!" 01149_ R-06 Scavenger destroyed. 01153_ as-05121 destroyed. 01153_ as-40883 destroyed. 01153_ as-63988 destroyed. 01153_ as-91158 destroyed. 01153_ as-49705 destroyed. 01153_ Destroyed Asb. Hover Unit. 01153_ as-34582 destroyed. 01156_ The unstable cave ceiling collapses. 01161_ Seismic Detector destroyed. 01161_ as-64592 destroyed. 01164_ Destroyed Asb. F-torch. 01186_ U-05 Engineer lays Concrete. 01194_ Ion Engine destroyed. 01196_ Lgt. Treads destroyed. 01198_ Wheel destroyed. 01198_ Particle Gun destroyed. Map ----- +----------------------------------------------------+ | ??????????????????????????????????# #?????????# | | ??????????????????????????????????# ##???????## " | | ?????????????????????????????????## ######?## | | ????????????????????????????????## ## ### | | ???????????????????????????????## ## | | ???????????????????????????????# ## | | ???????????????????????????????##### # # | | ??????????????????????????????? ???## | | ???????????????#??????????????? ????## # | | ????????????##? #???????????### ?###?####### # | | ????????????# # ???????????# # ???????## #### | | ????????????# ? ???????????# # ????##### #??? | | ???????????## ???????????? #???## ##?? | | ???????????? ??????????# ##?## #?? | | ????????????? #%????????### % ### #?? | | ?????????????? ???????## #?? | | ??????????????? ??????## #### #? | | ???????????????? ?????# ##??## ##? | | ????????????????# ?????# ##????##?? | | ????????????????# ????# ###?????? | | ????????????????# ###### ## ##????? | | ????????????????# d ######% #????? | | ????????????????# d #????? | | ????????????????#### #????? | | ???????????????????# ##????? | | ????????????????????# @ ## ##?????? | | ????????????????????# ### ##??????? | | ????????????????????# ### ####???????? | | ????????????????????## ## ##??????????? | | ?????????????????????## #???????????? | | ??????????????????????#### ##??????????? | | ?????????????????????????# #??????????? | | ?????????????????????????# #??????????? | | ?????????????????????????# #??????????? | | ?????????????????????????## #??????????? | | ??????????????????????????## ### ##??????????? | | ???????????????????????????######?####???????????? | | ?????????????????????????????????????????????????? | | | | | | | | | | | | | | | | | | | | | | | | | +----------------------------------------------------+ Best States ------------- Heat Dissipation 25 Energy Generation 10 Energy Capacity 250 Matter Stores 300 Matter Capacity 300 Sight Range 16 Terrain Scan Density 10 Evasion (%) 41 Recoil Reduction 2 Item Schematics ----------------- None Robot Schematics ------------------ None Fabricated ------------ Nothing Alien Tech Used ----------------- None Achievements -------------- None Challenges ------------ None Game ------ Seed BurstConcussiveInverter Manual? 0 Play Time 00:10:40 Cumulative 501.2 hours Start 2022.09.12 @ 10:09:01 End 2022.09.12 @ 20:37:58 Sessions 3 Manual Loads 0 Difficulty Rogue Special Mode None Game No. 568 Rogue 567 Adventurer 0 Explorer 1 Win Type - Total 17 Types 11/0/3/3/0/0/0/0/0 Lore% 80 Gallery% 90 Achievement% 72 Wizard Run 0 Options --------- ASCII 0 Keyboard 1 Movement Vi Keybinds 0 Fullscreen 1 Font 18/SmallcapsGlow Map View 76x50 Tactical HUD 1 Map Filters NONE Filters NONE Steam 1 RUN: 7462c819-bf3e-4f14-9cb9-4131a6aa45b9